[Event "Mitropa Cup Women 2022"]
[Site "Corte"]
[Date "2022.05.07"]
[Round "8.3"]
[White "Berke, Ana"]
[Black "Sankova, Stella"]
[Result "1/2-1/2"]
[ECO "B51"]
[WhiteElo "2150"]
[BlackElo "2055"]
[Annotator "TA"]
[PlyCount "62"]
[EventDate "2022.04.30"]
[EventType "team-tourn"]
[EventCountry "FRA"]
[SourceTitle "playchess.com"]
[Source "ChessBase"]
[SourceQuality "1"]
[WhiteTeam "Croatia"]
[BlackTeam "Slovakia"]
[WhiteTeamCountry "CRO"]
[BlackTeamCountry "SVK"]
[TimeControl "40/5400+30:1800+30"]

{[%evp 15,62,9,28,27,22,0,7,-22,20,19,19,16,16,0,14,0,31,0,34,21,29,29,33,0,0,-14,41,32,122,13,5,-29,0,0,0,0,0,-27,0,0,15,0,51,41,36,0,0,0,0]} 1. e4 {[%emt 0:00:03]} c5 {[%emt 0:00:05]} 2. Nf3 {[%emt 0:00:05]} d6 {[%emt 0:00:03]} 3. Bb5+ {[%emt 0:00:07]} Nd7 {[%emt 0:00:04]} 4. O-O {[%emt 0:00:07]} a6 {[%emt 0:00:10]} 5. Bxd7+ {[%emt 0:00:12]} Bxd7 {[%emt 0:00:04]} 6. d4 {[%emt 0:00:07]} cxd4 {[%emt 0:00:16]} 7. Qxd4 {[%emt 0:00:06]} e5 {[%emt 0:00:56]} 8. Qd3 {[%emt 0:00:09]} h6 {[%emt 0:00:09]} 9. a4 {[%emt 0:01:51] B51: Sicilian: Moscow Variation (3 Bb5+) without 3...Bd7.} Nf6 {[%emt 0:05:50]} 10. c4 {[%emt 0:00:32]} b5 {[%emt 0:01:40]} 11. Nfd2 {[%emt 0:03:07][%cal Ra4b5] [#]} bxa4 $146 {[%emt 0:11:46]} ({Predecessor:} 11... b4 12. Re1 Be7 13. Nf1 O-O 14. Nbd2 Qb8 15. Ng3 Bd8 16. Ndf1 Bb6 17. Be3 Be6 18. Bxb6 Qxb6 {½-½ (42) Komliakov,V (2484)-Damaso,R (2437) Panormo 2001}) 12. Nc3 {[%emt 0:01:34]} Be7 {[%emt 0:00:09]} 13. Nxa4 {[%emt 0:01:19]} O-O {[%emt 0:00:39]} 14. b3 {[%emt 0:01:14][%cal Bb2b3,Bb3b4][%mdl 32]} Qc7 {[%emt 0:01:55]} 15. Ba3 {[%emt 0:03:01]} Bc6 {[%emt 0:08:54]} 16. Rfc1 {[%emt 0:03:35]} Rfd8 {[%emt 0:02:20]} (16... Bxa4 $5 17. bxa4 Rfd8 $11) 17. Nc3 {[%emt 0:01:20] Pair of Knights!} Qb7 {[%emt 0:03:13]} 18. b4 {[%emt 0:02:19]} Nh5 {[%emt 0:04:21]} 19. Nd5 {[%emt 0:11:21]} Bg5 {[%emt 0:03:42]} 20. g3 {[%emt 0:04:28]} Rd7 {[%emt 0:10:17]} ({Black should try} 20... f5 $11) 21. Rc3 {[%emt 0:02:12]} Rf8 {[%emt 0:08:53] [#]} (21... f5 $14) 22. Rb1 {[%emt 0:05:11]} (22. Nb3 $1 $16 {[%cal Rb3a5]}) 22... f5 $11 {[%emt 0:07:06]} 23. exf5 {[%emt 0:02:37]} (23. b5 {is interesting.} Bxd5 24. bxa6 Qxa6 25. Qxd5+ Kh8 26. Nf3) 23... Bxd5 {[%emt 0:00:09]} (23... Bxd2 {keeps more tension.} 24. Qxd2 Rxf5 25. b5 axb5 26. g4 Rg5) 24. cxd5 {[%emt 0:00:58]} Bxd2 {[%emt 0:00:32]} 25. Qxd2 {[%emt 0:00:48][%cal Ob4b5]} Rxf5 {[%emt 0:00:43]} 26. Rbc1 {[%emt 0:09:59]} e4 (26... Rdf7 $5 {[%cal Rf5f2]} 27. b5 (27. Rc8+ Kh7 $17) 27... e4 $11) 27. Rc6 {[%emt 0:20:22]} Nf6 {[%emt 0:06:14]} 28. Qe2 {[%emt 0:03:04] Against Ng4} Rxd5 {[%emt 0:08:37]} (28... Qb5 $11 29. R1c4 Qxd5) 29. Bb2 $1 $14 {[%emt 0:01:59] [#] Bxf6 is the strong threat.} Qb5 {[%emt 0:02:17]} 30. Qe1 {[%emt 0:07:18][%mdl 1024] And now Bxf6 would win. White has compensation.} Re7 {[%emt 0:00:57]} 31. R6c4 {[%emt 0:03:02]} e3 {Weighted Error Value: White=0.20 (precise) /Black=0.24 (precise)} 1/2-1/2

[Event "Mitropa Cup Women 2022"]
[Site "Corte"]
[Date "2022.05.07"]
[Round "8.3"]
[White "Mayrhuber, Nikola"]
[Black "Mihok-Juhasz, Barbara"]
[Result "1-0"]
[ECO "E20"]
[WhiteElo "2086"]
[BlackElo "2202"]
[Annotator "TA"]
[PlyCount "137"]
[EventDate "2022.04.30"]
[EventType "team-tourn"]
[EventCountry "FRA"]
[SourceTitle "playchess.com"]
[Source "ChessBase"]
[SourceQuality "1"]
[WhiteTeam "Austria"]
[BlackTeam "Hungary"]
[WhiteTeamCountry "AUT"]
[BlackTeamCountry "HUN"]
[TimeControl "40/5400+30:1800+30"]

{[%evp 9,137,-6,6,-10,-4,-6,-7,-20,-2,-7,-13,-16,0,-1,7,8,10,-9,-8,-25,-23,0,0,0,0,0,10,0,24,-4,0,0,142,109,185,8,115,79,86,96,107,98,105,93,170,170,164,145,133,122,123,28,92,87,127,127,120,126,122,110,122,84,127,90,98,30,137,66,66,74,393,362,275,138,288,288,521,509,649,598,598,570,500,494,329,236,247,210,225,28,28,28,28,8,28,8,28,8,614,614,606,592,592,588,1760,1760,29957,29960,29964,29969,29968,29970,29967,29971,29969,29972,29968,29970,29971,29973,29981,29982,29983,29982,29983,29984,29984,29981,29983,29984]} 1. d4 {[%emt 0:00:02]} Nf6 {[%emt 0:00:06]} 2. c4 {[%emt 0:00:04]} e6 {[%emt 0:00:04]} 3. Nc3 {[%emt 0:00:05]} Bb4 {[%emt 0:00:05]} 4. Bd2 {[%emt 0:00:05]} O-O {[%emt 0:00:11]} 5. e3 {[%emt 0:00:04]} c5 {[%emt 0:00:05]} 6. d5 {[%emt 0:00:40] E46: Nimzo-Indian: Rubinstein: 4 e3 0-0 5 Ne2 without early Bd3.} exd5 {[%emt 0:05:08]} (6... Re8 {with more complications.} 7. a3 Bxc3 8. Bxc3 Ne4) 7. Nxd5 {[%emt 0:00:06]} Nxd5 {[%emt 0:00:10]} 8. cxd5 {[%emt 0:00:05] The position is equal.} Bxd2+ {[%emt 0:01:15]} 9. Qxd2 {[%emt 0:00:05]} d6 {[%emt 0:00:04]} 10. Ne2 {[%emt 0:00:22]} b5 {[%emt 0:00:25]} 11. Ng3 {[%emt 0:00:39] [#]} a6 $146 {[%emt 0:00:19]} ({Predecessor:} 11... b4 12. Bd3 Nd7 13. O-O a5 14. f4 Nb6 15. e4 Ra7 16. Kh1 Kh8 17. Rad1 Rc7 {½-½ (76) Storme,I (2213)-Hillarp Persson,T (2543) Vaxjo 2018}) 12. a4 {[%emt 0:06:20]} b4 {[%emt 0:04:23]} 13. a5 {[%emt 0:14:42]} Bd7 {[%emt 0:09:03]} 14. Be2 {[%emt 0:01:20]} Bb5 {[%emt 0:00:17]} 15. O-O {[%emt 0:01:29]} Bxe2 {[%emt 0:00:22]} 16. Qxe2 {[%emt 0:00:17]} Nd7 {[%emt 0:00:04]} 17. e4 {[%emt 0:11:17]} Re8 {[%emt 0:01:19]} 18. f4 {[%emt 0:12:41]} (18. Nf5 {looks sharper.} Qc7 19. f3 c4 20. Rfc1) 18... Ra7 {[%emt 0:13:24]} 19. Qc4 {[%emt 0:10:48]} (19. Nf5 $5 {[%cal Rf5d6]} Nf8 20. b3 $11 (20. Qg4 g6 $11)) 19... Qb8 {[%emt 0:09:45]} 20. Nf5 {[%emt 0:06:52]} Nf6 {[%emt 0:14:12]} (20... g6 $11 21. Nh6+ Kg7) 21. Rae1 {[%emt 0:04:32][%cal Oe4e5]} Ra8 {[%emt 0:08:05]} (21... Rd7 $16) 22. Re3 $2 {[%emt 0:14:48]} (22. e5 $1 $18 {[%cal Re5f6]} dxe5 23. fxe5 (23. Qxc5 exf4 24. Rxe8+ Qxe8 $14) 23... Rxe5 24. Ne7+ Rxe7 25. Rxe7) 22... Qb5 {[%emt 0:07:14]} (22... g6 $11 23. Nh6+ Kg7) 23. Nxd6 {[%emt 0:05:37] White is much more active.} (23. Qxb5 {feels hotter.} axb5 24. Nxd6 Reb8 25. Rd1) 23... Qxc4 {[%emt 0:00:46]} 24. Nxc4 {[%emt 0:00:05]} Rxe4 {[%emt 0:00:07]} 25. Rxe4 {[%emt 0:01:19]} Nxe4 $16 {[%emt 0:00:01][%mdl 4096] Endgame KRN-KRN} 26. f5 {[%emt 0:01:11]} Rd8 {[%emt 0:05:42]} (26... g6 $16) 27. Re1 $18 {[%emt 0:00:39]} Nf6 {[%emt 0:00:05]} 28. d6 {[%emt 0:00:28]} Kf8 {[%emt 0:00:24]} 29. Re5 {[%emt 0:02:27]} Nd7 {[%emt 0:00:11]} 30. Rd5 {[%emt 0:00:15]} (30. Re7 $16) 30... b3 {[%emt 0:12:26]} (30... Re8 $11 {remains equal.}) 31. Kf1 {[%emt 0:00:43]} Rb8 {[%emt 0:03:40]} 32. Ke2 $1 {[%emt 0:00:11]} Re8+ {[%emt 0:00:35]} 33. Kd3 {[%emt 0:01:19]} Re1 {[%emt 0:00:12]} 34. Kc3 $1 {[%emt 0:00:32]} Ke8 {[%emt 0:00:54]} 35. Kxb3 {[%emt 0:00:41]} Kd8 {[%emt 0:01:00]} 36. h3 {[%emt 0:03:38]} h5 {[%emt 0:01:21]} 37. Kc3 {[%emt 0:00:47]} ({White should try} 37. g4 $16) 37... Rf1 {[%emt 0:03:40]} (37... Rc1+ $11 38. Kb3 Rg1) 38. Nb6 {[%emt 0:00:25]} (38. Ne5 $1 $16) 38... Rf2 $14 {[%emt 0:00:32]} 39. g4 {[%emt 0:01:12]} Rf3+ $2 {[%emt 0:00:59][%mdl 8192]} (39... hxg4 $16 {is a better chance.} 40. hxg4 Rg2) 40. Rd3 $18 {[%emt 0:00:57]} Rf4 {[%emt 0:01:08]} 41. Nd5 {[%emt 0:11:49]} (41. gxh5 Nf6 $16) (41. Re3 $1 $18 {[%cal Re3e7] Hoping for Re7.} Rd4 42. gxh5) 41... Rf2 {[%emt 0:00:59]} (41... Rf1 $16) 42. Re3 {[%emt 0:01:42]} ({Not} 42. gxh5 Rxf5 43. Nc7 Rxh5 $16) 42... hxg4 $2 {[%emt 0:03:07]} (42... Rf1 43. Nc7 Kc8) 43. hxg4 {[%emt 0:01:00]} Rg2 {[%emt 0:05:48]} 44. Rh3 {[%emt 0:08:57] Rh8+ is the strong threat.} Nf6 {[%emt 0:06:10]} 45. Nxf6 {[%emt 0:02:15]} gxf6 {[%emt 0:00:04] KR-KR} 46. Kc4 {[%emt 0:00:23]} Kd7 {[%emt 0:04:46]} 47. Rh6 {[%emt 0:01:20]} (47. Kxc5 Rxb2 48. Rh7 Rb5+ 49. Kd4 Rb4+ 50. Kd5 Rb5+ 51. Ke4 Kxd6 52. Rxf7 Rb4+ 53. Kf3 Rb3+ 54. Kf4 Rb4+ 55. Kg3 Rb3+ 56. Kh4 Ke5 $18) 47... Kc6 {[%emt 0:02:56]} 48. Rxf6 {[%emt 0:01:23] Strongly threatening d7+.} Rxg4+ {[%emt 0:00:04]} 49. Kb3 $2 {[%emt 0:01:55]} ({Only move:} 49. Kd3 $1 $18) 49... Rg3+ $11 {[%emt 0:01:16]} 50. Ka2 {[%emt 0:00:04] aiming for d7+.} Rf3 {[%emt 0:00:06]} 51. d7+ {[%emt 0:03:31]} ({Much less strong is} 51. Rxf7 Kxd6 52. Rf6+ Kd5 $16) 51... Kxd7 {[%emt 0:00:04]} 52. Rxf7+ {[%emt 0:00:04]} Kd6 {[%emt 0:05:13]} 53. Rf6+ {[%emt 0:00:32]} Ke5 $2 {[%emt 0:00:50][%mdl 8192] Black is now going downhill.} (53... Kd5 $11) 54. Rxa6 $18 {[%emt 0:01:17]} Rxf5 {[%emt 0:00:04]} 55. Rb6 {[%emt 0:00:13] And now a6 would win.} Kd5 {[%emt 0:02:08]} 56. a6 $1 {[%emt 0:00:11][%cal Ba5a6,Ba6a7][%mdl 32] White wants to mate with a7.} Rf4 {[%emt 0:01:00]} 57. Rb3 {[%emt 0:00:18] Intending a7 and mate.} Rf8 {[%emt 0:01:15] [#]} 58. a7 $1 {[%emt 0:00:16] White mates.} Ra8 {[%emt 0:00:04]} 59. Ra3 {[%emt 0:00:27]} Kc4 {[%emt 0:00:58] [#]} 60. Ra4+ $1 {[%emt 0:01:22]} Kb5 {[%emt 0:00:08]} 61. Kb3 {[%emt 0:00:25]} c4+ {[%emt 0:00:37]} 62. Ka3 {[%emt 0:00:25]} Kc5 {[%emt 0:00:07]} 63. Ra5+ {[%emt 0:00:32]} Kb6 {[%emt 0:01:48]} 64. Kb4 {[%emt 0:00:04]} c3 {[%emt 0:00:11]} 65. bxc3 {[%emt 0:00:06]} Kc6 {[%emt 0:01:44]} 66. Ra6+ {[%emt 0:00:31]} Kc7 {[%emt 0:00:11]} 67. Kb5 {[%emt 0:00:29]} Kb7 {[%emt 0:00:06]} 68. Rb6+ {[%emt 0:01:44]} Kxa7 {[%emt 0:00:32]} 69. Ra6+ {[%emt 0:00:04] Weighted Error Value: White=0.28 (precise) /Black=0.60} 1-0

[Event "Mitropa Cup Women 2022"]
[Site "Corte"]
[Date "2022.05.07"]
[Round "8.4"]
[White "Karacsonyi, Kata"]
[Black "Froewis, Annika"]
[Result "1-0"]
[ECO "C78"]
[WhiteElo "2130"]
[BlackElo "2090"]
[Annotator "TA"]
[PlyCount "58"]
[EventDate "2022.04.30"]
[EventType "team-tourn"]
[EventCountry "FRA"]
[SourceTitle "playchess.com"]
[Source "ChessBase"]
[SourceQuality "1"]
[WhiteTeam "Hungary"]
[BlackTeam "Austria"]
[WhiteTeamCountry "HUN"]
[BlackTeamCountry "AUT"]
[TimeControl "40/5400+30:1800+30"]

{[%evp 17,58,31,43,31,8,0,29,24,61,47,45,57,53,39,50,50,79,79,275,283,285,279,298,310,300,295,597,593,574,564,884,868,5414,5414,5414,5414,1754,1745,5414,5414,29974,29975,29972]} 1. e4 {[%emt 0:00:03]} e5 {[%emt 0:00:04]} 2. Nf3 {[%emt 0:00:10]} Nc6 {[%emt 0:00:05]} 3. Bb5 {[%emt 0:00:09][%cal Bf1b5,Bb5a4,Ba4b3][%mdl 32]} a6 {[%emt 0:00:05]} 4. Ba4 {[%emt 0:00:29]} Nf6 {[%emt 0:00:14]} 5. O-O {[%emt 0:00:11]} b5 {[%emt 0:00:04]} 6. Bb3 {[%emt 0:00:08]} Bc5 {[%emt 0:00:05]} 7. a4 {[%emt 0:00:26]} Rb8 {[%emt 0:00:24]} 8. c3 {[%emt 0:00:31]} d6 {[%emt 0:00:09]} 9. d4 {[%emt 0:00:06]} Bb6 {[%emt 0:00:06]} 10. a5 {[%emt 0:00:17] C78: Ruy Lopez: Archangelsk and Möller Defences.} Ba7 {[%emt 0:00:16]} (10... Bxa5 $2 11. dxe5 (11. d5 Ne7 $18) 11... dxe5 12. Qxd8+ Kxd8 13. Bd5 (13. Bxf7 Bb6 $16) 13... Nxd5 14. exd5 $18) 11. h3 {[%emt 0:00:09]} Bb7 {[%emt 0:09:13]} 12. Be3 {[%emt 0:01:01] Threatening d5. White has an edge.} Ra8 {[%emt 0:03:46]} 13. Nbd2 {[%emt 0:01:26] White is more active.} O-O {[%emt 0:00:53]} 14. Re1 {[%emt 0:07:49]} exd4 {[%emt 0:03:26]} 15. cxd4 {[%emt 0:02:20]} Nb4 {[%emt 0:04:36]} 16. Bg5 {[%emt 0:00:24][%cal Be3g5,Bg5h4,Bh4g5][%mdl 32]} h6 {[%emt 0:00:43]} 17. Bh4 {[%emt 0:00:08] [#]} g5 $146 {[%emt 0:02:31] [#] This costs Black the game.} (17... Nd3 $16) ({Predecessor:} 17... Nd3 18. Re3 Nf4 19. e5 dxe5 20. dxe5 Bxe3 21. fxe3 Ng6 22. exf6 Nxh4 23. Nxh4 Qxf6 {0-1 (41) Bologan,V (2692)-Caruana,F (2652) Reggio Emilia 2009}) 18. Nxg5 $1 $18 {[%emt 0:02:29][%mdl 512]} hxg5 {[%emt 0:00:42]} 19. Bxg5 {[%emt 0:00:07] Black must now prevent Qf3.} Bxd4 {[%emt 0:01:18] [#]} 20. Nf3 $1 {[%emt 0:16:27]} Bxb2 {[%emt 0:27:17]} 21. Rb1 {[%emt 0:05:21]} Be5 {[%emt 0:01:04]} (21... Bc3 {is tougher.}) 22. Nxe5 {[%emt 0:01:49]} dxe5 {[%emt 0:02:07] [#]} 23. Qf3 {[%emt 0:10:57]} ({Not} 23. Qxd8 Rfxd8 24. Bxf6 Rd7 $16) 23... Kg7 {[%emt 0:03:21]} 24. Rbd1 {[%emt 0:01:56]} Bxe4 {[%emt 0:04:46]} 25. Rxe4 {[%emt 0:01:46][%mdl 64] Rh4 would kill now. Pin, Double Attack} Qxd1+ {[%emt 0:02:39]} 26. Bxd1 {[%emt 0:00:18] This bishop pair is nice.} Nxe4 {[%emt 0:00:09]} 27. Qxe4 {[%emt 0:00:19]} f6 {[%emt 0:00:28]} 28. Qxb4 {[%emt 0:02:43] White threatens Qe7+ and mate.} fxg5 {[%emt 0:00:10]} 29. Qe7+ {[%emt 0:00:08]} Rf7 {[%emt 0:00:55] Weighted Error Value: White=0.02 (flawless) /Black=1.05} 1-0

[Event "Mitropa Cup Women 2022"]
[Site "Corte"]
[Date "2022.05.07"]
[Round "8.4"]
[White "Koubova, Anna Marie"]
[Black "Schippke, Manon"]
[Result "0-1"]
[ECO "A17"]
[WhiteElo "2115"]
[BlackElo "2072"]
[Annotator "TA"]
[PlyCount "132"]
[EventDate "2022.04.30"]
[EventType "team-tourn"]
[EventCountry "FRA"]
[SourceTitle "playchess.com"]
[Source "ChessBase"]
[SourceQuality "1"]
[WhiteTeam "Czech Republic"]
[BlackTeam "France"]
[WhiteTeamCountry "CZE"]
[BlackTeamCountry "FRA"]
[TimeControl "40/5400+30:1800+30"]

{[%evp 10,132,6,18,32,33,37,36,31,22,40,21,52,37,41,-24,-27,-27,-12,-60,-56,-55,-52,-107,-86,-87,-90,-112,-91,-56,0,-450,-450,-427,-416,-486,-493,-493,-502,-494,-494,-475,-461,-622,-608,-714,-685,-647,-481,-764,-757,-700,-464,-447,-446,-512,-274,-279,-272,-272,-275,-262,-221,-304,-281,-341,-327,-337,-296,-304,-300,-399,-384,-398,-399,-482,-469,-499,-498,-450,-393,-496,-479,-434,-331,-323,-331,-310,-288,-400,-328,-397,-416,-406,-385,-752,-668,-575,-697,-679,-603,-642,-740,-808,-695,-681,-622,-576,-494,-495,-767,-751,-737,-588,-526,-754,-728,-971,-711,-748,-750,-977,-673,-2191,-1971]} 1. Nf3 {[%emt 0:00:19]} Nf6 {[%emt 0:00:03]} 2. c4 {[%emt 0:00:16]} e6 {[%emt 0:00:10]} 3. Nc3 {[%emt 0:00:19]} Bb4 {[%emt 0:00:07]} 4. Qc2 {[%emt 0:00:19]} O-O {[%emt 0:00:30]} 5. a3 {[%emt 0:00:38]} Bxc3 {[%emt 0:01:21]} 6. Qxc3 {[%emt 0:00:18]} Ne4 {[%emt 0:05:09] 6...d6 is a critical line. A17: English Opening: 1...Nf6 with ...Bb4.} 7. Qc2 {[%emt 0:01:24]} f5 {[%emt 0:00:17]} 8. d3 {[%emt 0:04:41]} Nf6 {[%emt 0:00:11] White is slightly better.} 9. g3 {[%emt 0:01:29]} d6 {[%emt 0:05:22]} 10. Bg2 {[%emt 0:03:35]} e5 {[%emt 0:01:46] [#]} 11. O-O $146 {[%emt 0:00:32]} ({Predecessor:} 11. b4 a5 12. Bb2 Qe8 13. Nd2 Kh8 14. c5 d5 15. d4 e4 16. Qb3 Nc6 17. Nf1 {0-1 (41) Akesson,R-Karlsson,L (2360) Stockholm 1978}) 11... Qe8 {[%emt 0:02:54]} 12. Nd2 {[%emt 0:11:19]} ({White should try} 12. b4 $14) 12... Nc6 $11 {[%emt 0:05:51]} 13. b4 {[%emt 0:06:07]} Qh5 {[%emt 0:16:05]} 14. Bb2 {[%emt 0:05:56]} (14. e3 $11 {deserves consideration.}) 14... f4 $15 {[%emt 0:09:24]} 15. b5 {[%emt 0:09:58]} Ne7 {[%emt 0:00:46]} 16. d4 {[%emt 0:07:52]} (16. Qb3 $15) 16... Bf5 $17 {[%emt 0:14:50]} (16... Qxe2 17. dxe5 Bf5 18. Rfe1 $1 {[%mdl 512]} (18. Qd1 Qxd1 19. Raxd1 dxe5 $16) 18... Bxc2 19. Rxe2 dxe5 20. Rc1 $16 (20. Bxb7 Rab8 $16) (20. Rxe5 Ng6 $16)) (16... Ng4 $6 17. h4 $15 (17. h3 fxg3 18. fxg3 Ne3 $15)) 17. Qc3 {[%emt 0:06:57]} e4 {[%emt 0:05:30] Black is more active.} (17... Ng4 $2 18. h3 $18) 18. d5 {[%emt 0:09:12][%cal Od2e4]} Rf7 {[%emt 0:00:44] White must now prevent ...Ng6.} (18... Qxe2 19. Nxe4 $1 Bxe4 20. Rae1 $14) 19. f3 {[%emt 0:06:33][%cal Rf3e4]} Bh3 $40 {[%emt 0:08:12][%mdl 128] Black has some attack.} ({Black should play} 19... e3 $15 20. Nb3 Qg6) 20. gxf4 $2 {[%emt 0:18:42][%mdl 8192] [#] Black converts the advantage convincingly.} (20. Bxh3 $1 $11 {and White is okay.} Qxh3 21. Nxe4 (21. gxf4 Nf5 $17) 21... Nxe4 22. fxe4) 20... Nfxd5 $1 $19 {[%emt 0:07:25][%mdl 512]} 21. cxd5 {[%emt 0:02:30]} Nxd5 {[%emt 0:00:02]} 22. Qb3 {[%emt 0:01:07] [#]} Qg6 $1 {[%emt 0:00:14][%csl Gh3][%cal Rg6g2]} 23. Rf2 {[%emt 0:00:15] [#]} e3 $1 {[%emt 0:01:56]} 24. Kh1 {[%emt 0:00:26][%cal Og2h3]} exf2 {[%emt 0:00:04][%csl Gg6][%cal Rh3g2]} 25. Bxh3 {[%emt 0:00:11]} Nxf4 {[%emt 0:00:08]} 26. Bg4 {[%emt 0:01:32]} h5 {[%emt 0:00:43]} 27. e3 {[%emt 0:00:20]} hxg4 {[%emt 0:03:13]} 28. exf4 {[%emt 0:00:04]} g3 {[%emt 0:00:25]} 29. hxg3 {[%emt 0:00:28]} (29. Kg2 $142 gxh2+ 30. Kxf2) 29... Qxg3 {[%emt 0:00:03][%cal Rg3h3]} 30. Qe6 {[%emt 0:00:11] Inhibits Qh3+.} Qxf4 {[%emt 0:00:35]} 31. Bc3 {[%emt 0:00:19]} Qg3 {[%emt 0:03:16]} 32. Rf1 {[%emt 0:01:01]} Kf8 {[%emt 0:00:39] ( -> ...Rf4)} 33. Qg4 {[%emt 0:00:52]} Qxg4 {[%emt 0:00:04]} 34. fxg4 {[%emt 0:00:04]} Re8 {[%emt 0:01:37]} ({But not} 34... a6 $2 35. b6 $19) 35. Kg2 {[%emt 0:00:43]} Re3 {[%emt 0:00:17]} 36. Nb1 {[%emt 0:01:11]} Re4 {[%emt 0:00:46]} 37. Rxf2 Rxg4+ {[%emt 0:00:04]} 38. Kf1 {[%emt 0:00:50]} Rgf4 {[%emt 0:00:08]} 39. Rxf4 {[%emt 0:00:10]} Rxf4+ {[%emt 0:00:02]} 40. Kg2 {[%emt 0:01:05]} c5 {[%emt 0:02:45]} 41. bxc6 {[%emt 0:02:02]} bxc6 {[%emt 0:00:10][%cal Bb7c6,Bc6c5,Bc5c4][%mdl 32]} 42. Nd2 {[%emt 0:00:59]} c5 {[%emt 0:03:54]} 43. Kg3 {[%emt 0:04:58]} Ra4 {[%emt 0:01:00]} 44. Bb2 {[%emt 0:00:19]} d5 {[%emt 0:00:23]} 45. Kf2 {[%emt 0:00:21]} Ke7 {[%emt 0:02:12]} 46. Nb3 {[%emt 0:02:59]} c4 {[%emt 0:03:35]} 47. Nd4 {[%emt 0:00:33]} g5 {[%emt 0:00:49][%cal Bg7g5,Bg5g4][%mdl 32]} 48. Ke3 {[%emt 0:02:05]} g4 {[%emt 0:02:17]} 49. Nf5+ {[%emt 0:01:04]} Ke6 {[%emt 0:00:56]} 50. Ng7+ {[%emt 0:00:09]} Kd7 {[%emt 0:00:17][%cal Oc4c3] Strongly threatening ...c3!} 51. Nf5 {[%emt 0:00:42]} Ra6 {[%emt 0:03:15]} 52. Kd4 $2 {[%emt 0:04:28]} (52. Kf4 Rb6 53. Bg7) 52... Rb6 {[%emt 0:00:43] Black is clearly winning.} 53. Bc3 {[%emt 0:02:10]} Rb3 {[%emt 0:00:34]} 54. a4 {[%emt 0:00:51]} Ra3 {[%emt 0:02:38]} 55. a5 {[%emt 0:01:34]} a6 {[%emt 0:00:46]} 56. Ng3 {[%emt 0:01:52]} Kc6 {[%emt 0:01:15]} 57. Ne2 {[%emt 0:02:46]} Ra2 {[%emt 0:01:59]} 58. Ke3 {[%emt 0:01:40]} Kc5 {[%emt 0:02:13][%cal Og4g3]} 59. Bd4+ {[%emt 0:00:30]} Kb4 {[%emt 0:00:56]} 60. Bc3+ {[%emt 0:00:15]} Ka3 {[%emt 0:01:45]} 61. Be5 {[%emt 0:04:07]} Rc2 {[%emt 0:03:14] aiming for ...Kb4.} 62. Nd4 {[%emt 0:02:31]} Rc3+ {[%emt 0:01:24]} 63. Kf2 {[%emt 0:01:53]} Rd3 {[%emt 0:00:19]} 64. Nc2+ {[%emt 0:00:47]} Ka4 {[%emt 0:02:26] And now ...Rd2+ would win.} 65. Ne1 {[%emt 0:00:19]} Rb3 {[%emt 0:00:34] ...Ra3 is the strong threat.} 66. Bc7 {[%emt 0:00:27]} d4 {[%emt 0:00:26] Weighted Error Value: White=0.54/Black=0.23 (precise)} 0-1